{"text_format":"1","workbook":"xlsx","n_sheets":3,"sheets":["Disclaimer","Rural-2Lane","Urban"],"not_rendered":{"charts":0,"images":1,"macros":1,"external_links":0,"defined_names":0,"comments":0,"pivot_tables":0},"unopened":[],"bounds":{"document_bytes":16777216,"sheet_cells":100000,"rows_first":2000,"rows_last":500,"rows_between":2000,"halvings":0,"cell_chars":16384,"cell_head_chars":4096},"cells_cut":0,"cells_raw":0,"read":"whole","date_system":"1900"}

{"sheet":"Disclaimer","index":0,"n_rows":22,"n_cols":11,"rows_kept":22,"cut":false,"hidden":false,"merged":[[9,3,10,8],[11,3,25,8],[21,10,25,14]]}
[]
[]
[]
[]
[]
[]
[]
[]
[]
[null,null,null,"Disclaimer"]
[]
[null,null,null,"This Design Calculation Spreadsheet is provided \"as-is\" without warranty of any kind. The Montana Department of Transportation makes no representations or warranties whatsoever with respect to the accuracy or completeness of this tool and assumes no responsibility for the suitability of this tool for a particular purpose; and MDT will not be liable for any damages incurred as a result of errors in this tool. \n\nBy selecting Accept, you are agreeing to these terms and conditions."]
[]
[]
[]
[]
[]
[]
[]
[]
[]
[null,null,null,null,null,null,null,null,null,null,"WARNING: \nFor the tool to work properly, please make sure you click on \"Enable Content/Macros\" if the security warning appears."]

{"sheet":"Rural-2Lane","index":1,"n_rows":103,"n_cols":87,"rows_kept":103,"cut":false,"hidden":true,"merged":[[2,71,3,73],[2,74,2,75],[1,79,1,84],[2,79,3,79],[2,80,3,82],[2,83,2,84],[2,56,2,57],[2,61,3,61],[2,62,3,64],[2,65,2,66],[2,70,3,70],[2,43,3,43],[2,44,3,46],[2,47,2,48],[2,52,3,52],[2,53,3,55],[1,52,1,57],[1,61,1,66],[1,70,1,75],[1,7,1,12],[1,16,1,21],[1,43,1,48],[2,7,3,7],[2,8,3,10],[2,11,2,12],[1,25,1,30],[1,34,1,39],[2,16,3,16],[2,17,3,19],[2,20,2,21],[2,25,3,25],[2,26,3,28],[2,29,2,30],[2,34,3,34],[2,35,3,37],[2,38,2,39]]}
[null,null,null,null,null,null,null,30,null,null,null,null,null,null,null,null,35,null,null,null,null,null,null,null,null,40,null,null,null,null,null,null,null,null,45,null,null,null,null,null,null,null,null,50,null,null,null,null,null,null,null,null,55,null,null,null,null,null,null,null,null,60,null,null,null,null,null,null,null,null,70,null,null,null,null,null,null,null,null,80]
["PI Station","Radius, R          (ft)","Superelevation, e            (ft/ft)","Design Speed, V","Minimum V =",{"$f":"MIN($D$3:$D$103)","v":0},null,"V = 30 mph",null,null,null,null,null,"Design Speed","Minimum Radius",null,"V = 35 mph",null,null,null,null,null,"Design Speed","Minimum Radius",null,"V = 40 mph",null,null,null,null,null,"Design Speed","Minimum Radius",null,"V = 45 mph",null,null,null,null,null,"Design Speed","Minimum Radius",null,"V = 50 mph",null,null,null,null,null,"Design Speed","Minimum Radius",null,"V = 55 mph",null,null,null,null,null,"Design Speed","Minimum Radius",null,"V = 60 mph",null,null,null,null,null,"Design Speed","Minimum Radius",null,"V = 70 mph",null,null,null,null,null,"Design Speed","Minimum Radius",null,"V = 80 mph",null,null,null,null,null,"Design Speed","Minimum Radius"]
[null,null,null,{"$f":"IF(OR(B3=\"\",C3=\"\"),\"\",CH3)","v":""},null,null,null,"e","R (ft)",null,null,"Trans. Length",null,{"$f":"IF($B3=\"\",\"\",IF($B3>=O3,H$1,\"Does Not Meet Design Speed\"))","v":""},{"$f":"IF($C3=\"\",\"\",LOOKUP($C3,H$5:H$12,K$5:K$12))","v":""},null,"e","R (ft)",null,null,"Trans. Length",null,{"$f":"IF($B3=\"\",\"\",IF($B3>=X3,Q$1,N3))","v":""},{"$f":"IF($C3=\"\",\"\",LOOKUP($C3,Q$5:Q$12,T$5:T$12))","v":""},null,"e","R (ft)",null,null,"Trans. Length",null,{"$f":"IF($B3=\"\",\"\",IF($B3>=AG3,Z$1,W3))","v":""},{"$f":"IF($C3=\"\",\"\",LOOKUP($C3,Z$5:Z$12,AC$5:AC$12))","v":""},null,"e","R (ft)",null,null,"Trans. Length",null,{"$f":"IF($B3=\"\",\"\",IF($B3>=AP3,AI$1,AF3))","v":""},{"$f":"IF($C3=\"\",\"\",LOOKUP($C3,AI$5:AI$12,AL$5:AL$12))","v":""},null,"e","R (ft)",null,null,"Trans. Length",null,{"$f":"IF($B3=\"\",\"\",IF($B3>=AY3,AR$1,AO3))","v":""},{"$f":"IF($C3=\"\",\"\",LOOKUP($C3,AR$5:AR$12,AU$5:AU$12))","v":""},null,"e","R (ft)",null,null,"Trans. Length",null,{"$f":"IF($B3=\"\",\"\",IF($B3>=BH3,BA$1,AX3))","v":""},{"$f":"IF($C3=\"\",\"\",LOOKUP($C3,BA$5:BA$12,BD$5:BD$12))","v":""},null,"e","R (ft)",null,null,"Trans. Length",null,{"$f":"IF($B3=\"\",\"\",IF($B3>=BQ3,BJ$1,BG3))","v":""},{"$f":"IF($C3=\"\",\"\",LOOKUP($C3,BJ$5:BJ$12,BM$5:BM$12))","v":""},null,"e","R (ft)",null,null,"Trans. Length",null,{"$f":"IF($B3=\"\",\"\",IF($B3>=BZ3,BS$1,BP3))","v":""},{"$f":"IF($C3=\"\",\"\",LOOKUP($C3,BS$5:BS$12,BV$5:BV$12))","v":""},null,"e","R (ft)",null,null,"Trans. Length",null,{"$f":"IF($B3=\"\",\"\",IF($B3>=CI3,CB$1,BY3))","v":""},{"$f":"IF($C3=\"\",\"\",LOOKUP($C3,CB$5:CB$12,CE$5:CE$12))","v":""}]
[null,null,null,{"$f":"IF(OR(B4=\"\",C4=\"\"),\"\",CH4)","v":""},null,null,null,null,null,null,null,"L (ft)","TR (ft)",{"$f":"IF($B4=\"\",\"\",IF($B4>=O4,H$1,\"Does Not Meet Design Speed\"))","v":""},{"$f":"IF(C4=\"\",\"\",LOOKUP($C4,$H$5:$H$12,$K$5:$K$12))","v":""},null,null,null,null,null,"L (ft)","TR (ft)",{"$f":"IF($B4=\"\",\"\",IF($B4>=X4,Q$1,N4))","v":""},{"$f":"IF($C4=\"\",\"\",LOOKUP($C4,Q$5:Q$12,T$5:T$12))","v":""},null,null,null,null,null,"L (ft)","TR (ft)",{"$f":"IF($B4=\"\",\"\",IF($B4>=AG4,Z$1,W4))","v":""},{"$f":"IF($C4=\"\",\"\",LOOKUP($C4,Z$5:Z$12,AC$5:AC$12))","v":""},null,null,null,null,null,"L (ft)","TR (ft)",{"$f":"IF($B4=\"\",\"\",IF($B4>=AP4,AI$1,AF4))","v":""},{"$f":"IF($C4=\"\",\"\",LOOKUP($C4,AI$5:AI$12,AL$5:AL$12))","v":""},null,null,null,null,null,"L (ft)","TR (ft)",{"$f":"IF($B4=\"\",\"\",IF($B4>=AY4,AR$1,AO4))","v":""},{"$f":"IF($C4=\"\",\"\",LOOKUP($C4,AR$5:AR$12,AU$5:AU$12))","v":""},null,null,null,null,null,"L (ft)","TR (ft)",{"$f":"IF($B4=\"\",\"\",IF($B4>=BH4,BA$1,AX4))","v":""},{"$f":"IF($C4=\"\",\"\",LOOKUP($C4,BA$5:BA$12,BD$5:BD$12))","v":""},null,null,null,null,null,"L (ft)","TR (ft)",{"$f":"IF($B4=\"\",\"\",IF($B4>=BQ4,BJ$1,BG4))","v":""},{"$f":"IF($C4=\"\",\"\",LOOKUP($C4,BJ$5:BJ$12,BM$5:BM$12))","v":""},null,null,null,null,null,"L (ft)","TR (ft)",{"$f":"IF($B4=\"\",\"\",IF($B4>=BZ4,BS$1,BP4))","v":""},{"$f":"IF($C4=\"\",\"\",LOOKUP($C4,BS$5:BS$12,BV$5:BV$12))","v":""},null,null,null,null,null,"L (ft)","TR (ft)",{"$f":"IF($B4=\"\",\"\",IF($B4>=CI4,CB$1,BY4))","v":""},{"$f":"IF($C4=\"\",\"\",LOOKUP($C4,CB$5:CB$12,CE$5:CE$12))","v":""}]
[null,null,null,"",null,null,null,"NC",null,"R ≥",3240,0,0,"","",null,"NC",null,"R ≥",4260,0,0,"","",null,"NC",null,"R ≥",5410,0,0,"","",null,"NC",null,"R ≥",6710,0,0,{"$f":"IF($B5=\"\",\"\",IF($B5>=AP5,AI$1,AF5))","v":""},"",null,"NC",null,"R ≥",8150,0,0,"","",null,"NC",null,"R ≥",9720,0,0,"","",null,"NC",null,"R ≥",11500,0,0,{"$f":"IF($B5=\"\",\"\",IF($B5>=BQ5,BJ$1,BG5))","v":""},{"$f":"IF($C5=\"\",\"\",LOOKUP($C5,BJ$5:BJ$12,BM$5:BM$12))","v":""},null,"NC",null,"R ≥",14500,0,0,"","",null,"NC",null,"R ≥",17800,0,0,{"$f":"IF($B5=\"\",\"\",IF($B5>=CI5,CB$1,BY5))","v":""},{"$f":"IF($C5=\"\",\"\",LOOKUP($C5,CB$5:CB$12,CE$5:CE$12))","v":""}]
[null,null,null,"",null,null,null,0.02,3240,"> R ≥",2370,36,36,"","",null,0.02,4260,"> R ≥",3120,40,40,"","",null,0.02,5410,"> R ≥",3970,42,42,"","",null,0.02,6710,"> R ≥",4930,44,44,"","",null,0.02,8150,"> R ≥",5990,48,48,"","",null,0.02,9720,"> R ≥",7150,52,52,"","",null,0.02,11500,"> R ≥",8440,54,54,"","",null,0.02,14500,"> R ≥",10700,60,60,{"$f":"IF($B6=\"\",\"\",IF($B6>=BZ6,BS$1,BP6))","v":""},{"$f":"IF($C6=\"\",\"\",LOOKUP($C6,BS$5:BS$12,BV$5:BV$12))","v":""},null,0.02,17800,"> R ≥",13300,60,60,"",""]
[null,null,null,"",null,null,null,0.03,2370,"> R ≥",1480,54,36,"","",null,0.03,3120,"> R ≥",1960,60,40,"","",null,0.03,3970,"> R ≥",2510,63,42,"","",null,0.03,4930,"> R ≥",3130,66,44,"","",null,0.03,5990,"> R ≥",3620,72,48,"","",null,0.03,7150,"> R ≥",4580,78,52,"","",null,0.03,8440,"> R ≥",5420,81,54,"","",null,0.03,10700,"> R ≥",6930,90,60,"","",null,0.03,13300,"> R ≥",8700,90,60,"",""]
[null,null,null,"",null,null,null,0.04,1480,"> R ≥",1030,72,36,"","",null,0.04,1960,"> R ≥",1370,80,40,"","",null,0.04,2510,"> R ≥",1770,84,42,"","",null,0.04,3130,"> R ≥",2220,88,44,"","",null,0.04,3620,"> R ≥",2720,96,48,"","",null,0.04,4580,"> R ≥",3270,104,52,"","",null,0.04,5420,"> R ≥",3890,108,54,"","",null,0.04,6930,"> R ≥",5050,120,60,"","",null,0.04,8700,"> R ≥",6420,120,60,"",""]
[null,null,null,"",null,null,null,0.05,1030,"> R ≥",730,90,36,"","",null,0.05,1370,"> R ≥",1000,100,40,"","",null,0.05,1770,"> R ≥",1310,105,42,"","",null,0.05,2220,"> R ≥",1650,110,44,"","",null,0.05,2720,"> R ≥",2040,120,48,"","",null,0.05,3270,"> R ≥",2470,130,52,"","",null,0.05,3890,"> R ≥",2960,135,54,"","",null,0.05,5050,"> R ≥",3910,150,60,"","",null,0.05,6420,"> R ≥",5050,150,60,"",""]
[null,null,null,"",null,null,null,0.06,730,"> R ≥",510,108,36,"","",null,0.06,1000,"> R ≥",720,120,40,"","",null,0.06,1310,"> R ≥",970,126,42,"","",null,0.06,1650,"> R ≥",1250,132,44,"","",null,0.06,2040,"> R ≥",1560,144,48,"","",null,0.06,2470,"> R ≥",1920,156,52,"","",null,0.06,2960,"> R ≥",2320,162,54,"","",null,0.06,3910,"> R ≥",3150,180,60,"","",null,0.06,5050,"> R ≥",4140,180,60,"",""]
[null,null,null,"",null,null,null,7.0000000000000007E-2,510,"> R ≥",360,126,36,"","",null,7.0000000000000007E-2,720,"> R ≥",520,140,40,"","",null,7.0000000000000007E-2,970,"> R ≥",720,147,42,"","",null,7.0000000000000007E-2,1250,"> R ≥",940,154,44,"","",null,7.0000000000000007E-2,1560,"> R ≥",1190,168,48,"","",null,7.0000000000000007E-2,1920,"> R ≥",1480,182,52,"","",null,7.0000000000000007E-2,2320,"> R ≥",1820,189,54,"","",null,7.0000000000000007E-2,3150,"> R ≥",2580,210,60,"","",null,7.0000000000000007E-2,4140,"> R ≥",3480,210,60,"",""]
[null,null,null,"",null,null,null,0.08,360,"> R ≥",220,144,36,"","",null,0.08,520,"> R ≥",320,160,40,"","",null,0.08,720,"> R ≥",450,168,42,"","",null,0.08,940,"> R ≥",590,176,44,"","",null,0.08,1190,"> R ≥",760,192,48,"","",null,0.08,1480,"> R ≥",960,208,52,"","",null,0.08,1820,"> R ≥",1200,216,54,"","",null,0.08,2580,"> R ≥",1810,240,60,"","",null,0.08,3480,"> R ≥",2670,240,60,"",""]
[null,null,null,"",null,null,null,null,null,null,null,null,null,"","",null,null,null,null,null,null,null,"","",null,null,null,null,null,null,null,"","",null,null,null,null,null,null,null,"","",null,null,null,null,null,null,null,"","",null,null,null,null,null,null,null,"","",null,null,null,null,null,null,null,"","",null,null,null,null,null,null,null,"","",null,null,null,null,null,null,null,"",""]
[null,null,null,"",null,null,null,null,null,null,null,null,null,"","",null,null,null,null,null,null,null,"","",null,null,null,null,null,null,null,"",{"$f":"IF($C14=\"\",\"\",LOOKUP($C14,Z$5:Z$12,AC$5:AC$12))","v":""},null,null,null,null,null,null,null,"",{"$f":"IF($C14=\"\",\"\",LOOKUP($C14,AI$5:AI$12,AL$5:AL$12))","v":""},null,null,null,null,null,null,null,"","",null,null,null,null,null,null,null,"","",null,null,null,null,null,null,null,"","",null,null,null,null,null,null,null,"","",null,null,null,null,null,null,null,"",""]
[null,null,null,"",null,null,null,null,null,null,null,null,null,"","",null,null,null,null,null,null,null,"","",null,null,null,null,null,null,null,"","",null,null,null,null,null,null,null,"","",null,null,null,null,null,null,null,"","",null,null,null,null,null,null,null,"","",null,null,null,null,null,null,null,"","",null,null,null,null,null,null,null,"","",null,null,null,null,null,null,null,"",""]
[null,null,null,"",null,null,null,null,null,null,null,null,null,"","",null,null,null,null,null,null,null,"","",null,null,null,null,null,null,null,"","",null,null,null,null,null,null,null,"","",null,null,null,null,null,null,null,"","",null,null,null,null,null,null,null,"","",null,null,null,null,null,null,null,"","",null,null,null,null,null,null,null,"","",null,null,null,null,null,null,null,"",""]
[null,null,null,"",null,null,null,null,null,null,null,null,null,"","",null,null,null,null,null,null,null,"","",null,null,null,null,null,null,null,"","",null,null,null,null,null,null,null,"","",null,null,null,null,null,null,null,"","",null,null,null,null,null,null,null,"","",null,null,null,null,null,null,null,"","",null,null,null,null,null,null,null,"","",null,null,null,null,null,null,null,"",""]
[null,null,null,"",null,null,null,null,null,null,null,null,null,"","",null,null,null,null,null,null,null,"","",null,null,null,null,null,null,null,"","",null,null,null,null,null,null,null,"","",null,null,null,null,null,null,null,"","",null,null,null,null,null,null,null,"","",null,null,null,null,null,null,null,"","",null,null,null,null,null,null,null,"","",null,null,null,null,null,null,null,"",""]
[null,null,null,"",null,null,null,null,null,null,null,null,null,"","",null,null,null,null,null,null,null,"","",null,null,null,null,null,null,null,"","",null,null,null,null,null,null,null,"","",null,null,null,null,null,null,null,"","",null,null,null,null,null,null,null,"","",null,null,null,null,null,null,null,"","",null,null,null,null,null,null,null,"","",null,null,null,null,null,null,null,"",""]
[null,null,null,"",null,null,null,null,null,null,null,null,null,"","",null,null,null,null,null,null,null,"","",null,null,null,null,null,null,null,"","",null,null,null,null,null,null,null,"","",null,null,null,null,null,null,null,"","",null,null,null,null,null,null,null,"","",null,null,null,null,null,null,null,"","",null,null,null,null,null,null,null,"","",null,null,null,null,null,null,null,"",""]
[null,null,null,"",null,null,null,null,null,null,null,null,null,"","",null,null,null,null,null,null,null,"","",null,null,null,null,null,null,null,"","",null,null,null,null,null,null,null,"","",null,null,null,null,null,null,null,"","",null,null,null,null,null,null,null,"","",null,null,null,null,null,null,null,"","",null,null,null,null,null,null,null,"","",null,null,null,null,null,null,null,"",""]
[null,null,null,"",null,null,null,null,null,null,null,null,null,"","",null,null,null,null,null,null,null,"","",null,null,null,null,null,null,null,"","",null,null,null,null,null,null,null,"","",null,null,null,null,null,null,null,"","",null,null,null,null,null,null,null,"","",null,null,null,null,null,null,null,"","",null,null,null,null,null,null,null,"","",null,null,null,null,null,null,null,"",""]
[null,null,null,"",null,null,null,null,null,null,null,null,null,"","",null,null,null,null,null,null,null,"","",null,null,null,null,null,null,null,"","",null,null,null,null,null,null,null,"","",null,null,null,null,null,null,null,"","",null,null,null,null,null,null,null,"","",null,null,null,null,null,null,null,"","",null,null,null,null,null,null,null,"","",null,null,null,null,null,null,null,"",""]
[null,null,null,"",null,null,null,null,null,null,null,null,null,"","",null,null,null,null,null,null,null,"","",null,null,null,null,null,null,null,"","",null,null,null,null,null,null,null,"","",null,null,null,null,null,null,null,"","",null,null,null,null,null,null,null,"","",null,null,null,null,null,null,null,"","",null,null,null,null,null,null,null,"","",null,null,null,null,null,null,null,"",""]
[null,null,null,"",null,null,null,null,null,null,null,null,null,"","",null,null,null,null,null,null,null,"","",null,null,null,null,null,null,null,"","",null,null,null,null,null,null,null,"","",null,null,null,null,null,null,null,"","",null,null,null,null,null,null,null,"","",null,null,null,null,null,null,null,"","",null,null,null,null,null,null,null,"","",null,null,null,null,null,null,null,"",""]
[null,null,null,"",null,null,null,null,null,null,null,null,null,"","",null,null,null,null,null,null,null,"","",null,null,null,null,null,null,null,"","",null,null,null,null,null,null,null,"","",null,null,null,null,null,null,null,"","",null,null,null,null,null,null,null,"","",null,null,null,null,null,null,null,"","",null,null,null,null,null,null,null,"","",null,null,null,null,null,null,null,"",""]
[null,null,null,"",null,null,null,null,null,null,null,null,null,"","",null,null,null,null,null,null,null,"","",null,null,null,null,null,null,null,"","",null,null,null,null,null,null,null,"","",null,null,null,null,null,null,null,"","",null,null,null,null,null,null,null,"","",null,null,null,null,null,null,null,"","",null,null,null,null,null,null,null,"","",null,null,null,null,null,null,null,"",""]
[null,null,null,"",null,null,null,null,null,null,null,null,null,"","",null,null,null,null,null,null,null,"","",null,null,null,null,null,null,null,"","",null,null,null,null,null,null,null,"","",null,null,null,null,null,null,null,"","",null,null,null,null,null,null,null,"","",null,null,null,null,null,null,null,"","",null,null,null,null,null,null,null,"","",null,null,null,null,null,null,null,"",""]
[null,null,null,"",null,null,null,null,null,null,null,null,null,"","",null,null,null,null,null,null,null,"","",null,null,null,null,null,null,null,"","",null,null,null,null,null,null,null,"","",null,null,null,null,null,null,null,"","",null,null,null,null,null,null,null,"","",null,null,null,null,null,null,null,"","",null,null,null,null,null,null,null,"","",null,null,null,null,null,null,null,"",""]
[null,null,null,"",null,null,null,null,null,null,null,null,null,"","",null,null,null,null,null,null,null,"","",null,null,null,null,null,null,null,"","",null,null,null,null,null,null,null,"","",null,null,null,null,null,null,null,"","",null,null,null,null,null,null,null,"","",null,null,null,null,null,null,null,"","",null,null,null,null,null,null,null,"","",null,null,null,null,null,null,null,"",""]
[null,null,null,"",null,null,null,null,null,null,null,null,null,"","",null,null,null,null,null,null,null,"","",null,null,null,null,null,null,null,"","",null,null,null,null,null,null,null,"","",null,null,null,null,null,null,null,"","",null,null,null,null,null,null,null,"","",null,null,null,null,null,null,null,"","",null,null,null,null,null,null,null,"","",null,null,null,null,null,null,null,"",""]
[null,null,null,"",null,null,null,null,null,null,null,null,null,"","",null,null,null,null,null,null,null,"","",null,null,null,null,null,null,null,"","",null,null,null,null,null,null,null,"","",null,null,null,null,null,null,null,"","",null,null,null,null,null,null,null,"","",null,null,null,null,null,null,null,"","",null,null,null,null,null,null,null,"","",null,null,null,null,null,null,null,"",""]
[null,null,null,"",null,null,null,null,null,null,null,null,null,"","",null,null,null,null,null,null,null,"","",null,null,null,null,null,null,null,"","",null,null,null,null,null,null,null,"","",null,null,null,null,null,null,null,"","",null,null,null,null,null,null,null,"","",null,null,null,null,null,null,null,"","",null,null,null,null,null,null,null,"","",null,null,null,null,null,null,null,"",""]
[null,null,null,"",null,null,null,null,null,null,null,null,null,"","",null,null,null,null,null,null,null,"","",null,null,null,null,null,null,null,"","",null,null,null,null,null,null,null,"","",null,null,null,null,null,null,null,"","",null,null,null,null,null,null,null,"","",null,null,null,null,null,null,null,"","",null,null,null,null,null,null,null,"","",null,null,null,null,null,null,null,"",""]
[null,null,null,"",null,null,null,null,null,null,null,null,null,"","",null,null,null,null,null,null,null,"","",null,null,null,null,null,null,null,"","",null,null,null,null,null,null,null,"","",null,null,null,null,null,null,null,"","",null,null,null,null,null,null,null,"","",null,null,null,null,null,null,null,"","",null,null,null,null,null,null,null,"","",null,null,null,null,null,null,null,"",""]
[null,null,null,"",null,null,null,null,null,null,null,null,null,"","",null,null,null,null,null,null,null,"","",null,null,null,null,null,null,null,"","",null,null,null,null,null,null,null,"","",null,null,null,null,null,null,null,"","",null,null,null,null,null,null,null,"","",null,null,null,null,null,null,null,"","",null,null,null,null,null,null,null,"","",null,null,null,null,null,null,null,"",""]
[null,null,null,"",null,null,null,null,null,null,null,null,null,"","",null,null,null,null,null,null,null,"","",null,null,null,null,null,null,null,"","",null,null,null,null,null,null,null,"","",null,null,null,null,null,null,null,"","",null,null,null,null,null,null,null,"","",null,null,null,null,null,null,null,"","",null,null,null,null,null,null,null,"","",null,null,null,null,null,null,null,"",""]
[null,null,null,"",null,null,null,null,null,null,null,null,null,"","",null,null,null,null,null,null,null,"","",null,null,null,null,null,null,null,"","",null,null,null,null,null,null,null,"","",null,null,null,null,null,null,null,"","",null,null,null,null,null,null,null,"","",null,null,null,null,null,null,null,"","",null,null,null,null,null,null,null,"","",null,null,null,null,null,null,null,"",""]
[null,null,null,"",null,null,null,null,null,null,null,null,null,"","",null,null,null,null,null,null,null,"","",null,null,null,null,null,null,null,"","",null,null,null,null,null,null,null,"","",null,null,null,null,null,null,null,"","",null,null,null,null,null,null,null,"","",null,null,null,null,null,null,null,"","",null,null,null,null,null,null,null,"","",null,null,null,null,null,null,null,"",""]
[null,null,null,"",null,null,null,null,null,null,null,null,null,"","",null,null,null,null,null,null,null,"","",null,null,null,null,null,null,null,"","",null,null,null,null,null,null,null,"","",null,null,null,null,null,null,null,"","",null,null,null,null,null,null,null,"","",null,null,null,null,null,null,null,"","",null,null,null,null,null,null,null,"","",null,null,null,null,null,null,null,"",""]
[null,null,null,"",null,null,null,null,null,null,null,null,null,"","",null,null,null,null,null,null,null,"","",null,null,null,null,null,null,null,"","",null,null,null,null,null,null,null,"","",null,null,null,null,null,null,null,"","",null,null,null,null,null,null,null,"","",null,null,null,null,null,null,null,"","",null,null,null,null,null,null,null,"","",null,null,null,null,null,null,null,"",""]
[null,null,null,"",null,null,null,null,null,null,null,null,null,"","",null,null,null,null,null,null,null,"","",null,null,null,null,null,null,null,"","",null,null,null,null,null,null,null,"","",null,null,null,null,null,null,null,"","",null,null,null,null,null,null,null,"","",null,null,null,null,null,null,null,"","",null,null,null,null,null,null,null,"","",null,null,null,null,null,null,null,"",""]
[null,null,null,"",null,null,null,null,null,null,null,null,null,"","",null,null,null,null,null,null,null,"","",null,null,null,null,null,null,null,"","",null,null,null,null,null,null,null,"","",null,null,null,null,null,null,null,"","",null,null,null,null,null,null,null,"","",null,null,null,null,null,null,null,"","",null,null,null,null,null,null,null,"","",null,null,null,null,null,null,null,"",""]
[null,null,null,"",null,null,null,null,null,null,null,null,null,"","",null,null,null,null,null,null,null,"","",null,null,null,null,null,null,null,"","",null,null,null,null,null,null,null,"","",null,null,null,null,null,null,null,"","",null,null,null,null,null,null,null,"","",null,null,null,null,null,null,null,"","",null,null,null,null,null,null,null,"","",null,null,null,null,null,null,null,"",""]
[null,null,null,"",null,null,null,null,null,null,null,null,null,"","",null,null,null,null,null,null,null,"","",null,null,null,null,null,null,null,"","",null,null,null,null,null,null,null,"","",null,null,null,null,null,null,null,"","",null,null,null,null,null,null,null,"","",null,null,null,null,null,null,null,"","",null,null,null,null,null,null,null,"","",null,null,null,null,null,null,null,"",""]
[null,null,null,"",null,null,null,null,null,null,null,null,null,"","",null,null,null,null,null,null,null,"","",null,null,null,null,null,null,null,"","",null,null,null,null,null,null,null,"","",null,null,null,null,null,null,null,"","",null,null,null,null,null,null,null,"","",null,null,null,null,null,null,null,"","",null,null,null,null,null,null,null,"","",null,null,null,null,null,null,null,"",""]
[null,null,null,"",null,null,null,null,null,null,null,null,null,"","",null,null,null,null,null,null,null,"","",null,null,null,null,null,null,null,"","",null,null,null,null,null,null,null,"","",null,null,null,null,null,null,null,"","",null,null,null,null,null,null,null,"","",null,null,null,null,null,null,null,"","",null,null,null,null,null,null,null,"","",null,null,null,null,null,null,null,"",""]
[null,null,null,"",null,null,null,null,null,null,null,null,null,"","",null,null,null,null,null,null,null,"","",null,null,null,null,null,null,null,"","",null,null,null,null,null,null,null,"","",null,null,null,null,null,null,null,"","",null,null,null,null,null,null,null,"","",null,null,null,null,null,null,null,"","",null,null,null,null,null,null,null,"","",null,null,null,null,null,null,null,"",""]
[null,null,null,"",null,null,null,null,null,null,null,null,null,"","",null,null,null,null,null,null,null,"","",null,null,null,null,null,null,null,"","",null,null,null,null,null,null,null,"","",null,null,null,null,null,null,null,"","",null,null,null,null,null,null,null,"","",null,null,null,null,null,null,null,"","",null,null,null,null,null,null,null,"","",null,null,null,null,null,null,null,"",""]
[null,null,null,"",null,null,null,null,null,null,null,null,null,"","",null,null,null,null,null,null,null,"","",null,null,null,null,null,null,null,"","",null,null,null,null,null,null,null,"","",null,null,null,null,null,null,null,"","",null,null,null,null,null,null,null,"","",null,null,null,null,null,null,null,"","",null,null,null,null,null,null,null,"","",null,null,null,null,null,null,null,"",""]
[null,null,null,"",null,null,null,null,null,null,null,null,null,"","",null,null,null,null,null,null,null,"","",null,null,null,null,null,null,null,"","",null,null,null,null,null,null,null,"","",null,null,null,null,null,null,null,"","",null,null,null,null,null,null,null,"","",null,null,null,null,null,null,null,"","",null,null,null,null,null,null,null,"","",null,null,null,null,null,null,null,"",""]
[null,null,null,"",null,null,null,null,null,null,null,null,null,"","",null,null,null,null,null,null,null,"","",null,null,null,null,null,null,null,"","",null,null,null,null,null,null,null,"","",null,null,null,null,null,null,null,"","",null,null,null,null,null,null,null,"","",null,null,null,null,null,null,null,"","",null,null,null,null,null,null,null,"","",null,null,null,null,null,null,null,"",""]
[null,null,null,"",null,null,null,null,null,null,null,null,null,"","",null,null,null,null,null,null,null,"","",null,null,null,null,null,null,null,"","",null,null,null,null,null,null,null,"","",null,null,null,null,null,null,null,"","",null,null,null,null,null,null,null,"","",null,null,null,null,null,null,null,"","",null,null,null,null,null,null,null,"","",null,null,null,null,null,null,null,"",""]
[null,null,null,"",null,null,null,null,null,null,null,null,null,"","",null,null,null,null,null,null,null,"","",null,null,null,null,null,null,null,"","",null,null,null,null,null,null,null,"","",null,null,null,null,null,null,null,"","",null,null,null,null,null,null,null,"","",null,null,null,null,null,null,null,"","",null,null,null,null,null,null,null,"","",null,null,null,null,null,null,null,"",""]
[null,null,null,"",null,null,null,null,null,null,null,null,null,"","",null,null,null,null,null,null,null,"","",null,null,null,null,null,null,null,"","",null,null,null,null,null,null,null,"","",null,null,null,null,null,null,null,"","",null,null,null,null,null,null,null,"","",null,null,null,null,null,null,null,"","",null,null,null,null,null,null,null,"","",null,null,null,null,null,null,null,"",""]
[null,null,null,"",null,null,null,null,null,null,null,null,null,"","",null,null,null,null,null,null,null,"","",null,null,null,null,null,null,null,"","",null,null,null,null,null,null,null,"","",null,null,null,null,null,null,null,"","",null,null,null,null,null,null,null,"","",null,null,null,null,null,null,null,"","",null,null,null,null,null,null,null,"","",null,null,null,null,null,null,null,"",""]
[null,null,null,"",null,null,null,null,null,null,null,null,null,"","",null,null,null,null,null,null,null,"","",null,null,null,null,null,null,null,"","",null,null,null,null,null,null,null,"","",null,null,null,null,null,null,null,"","",null,null,null,null,null,null,null,"","",null,null,null,null,null,null,null,"","",null,null,null,null,null,null,null,"","",null,null,null,null,null,null,null,"",""]
[null,null,null,"",null,null,null,null,null,null,null,null,null,"","",null,null,null,null,null,null,null,"","",null,null,null,null,null,null,null,"","",null,null,null,null,null,null,null,"","",null,null,null,null,null,null,null,"","",null,null,null,null,null,null,null,"","",null,null,null,null,null,null,null,"","",null,null,null,null,null,null,null,"","",null,null,null,null,null,null,null,"",""]
[null,null,null,"",null,null,null,null,null,null,null,null,null,"","",null,null,null,null,null,null,null,"","",null,null,null,null,null,null,null,"","",null,null,null,null,null,null,null,"","",null,null,null,null,null,null,null,"","",null,null,null,null,null,null,null,"","",null,null,null,null,null,null,null,"","",null,null,null,null,null,null,null,"","",null,null,null,null,null,null,null,"",""]
[null,null,null,"",null,null,null,null,null,null,null,null,null,"","",null,null,null,null,null,null,null,"","",null,null,null,null,null,null,null,"","",null,null,null,null,null,null,null,"","",null,null,null,null,null,null,null,"","",null,null,null,null,null,null,null,"","",null,null,null,null,null,null,null,"","",null,null,null,null,null,null,null,"","",null,null,null,null,null,null,null,"",""]
[null,null,null,"",null,null,null,null,null,null,null,null,null,"","",null,null,null,null,null,null,null,"","",null,null,null,null,null,null,null,"","",null,null,null,null,null,null,null,"","",null,null,null,null,null,null,null,"","",null,null,null,null,null,null,null,"","",null,null,null,null,null,null,null,"","",null,null,null,null,null,null,null,"","",null,null,null,null,null,null,null,"",""]
[null,null,null,"",null,null,null,null,null,null,null,null,null,"","",null,null,null,null,null,null,null,"","",null,null,null,null,null,null,null,"","",null,null,null,null,null,null,null,"","",null,null,null,null,null,null,null,"","",null,null,null,null,null,null,null,"","",null,null,null,null,null,null,null,"","",null,null,null,null,null,null,null,"","",null,null,null,null,null,null,null,"",""]
[null,null,null,"",null,null,null,null,null,null,null,null,null,"","",null,null,null,null,null,null,null,"","",null,null,null,null,null,null,null,"","",null,null,null,null,null,null,null,"","",null,null,null,null,null,null,null,"","",null,null,null,null,null,null,null,"","",null,null,null,null,null,null,null,"","",null,null,null,null,null,null,null,"","",null,null,null,null,null,null,null,"",""]
[null,null,null,"",null,null,null,null,null,null,null,null,null,"","",null,null,null,null,null,null,null,"","",null,null,null,null,null,null,null,"","",null,null,null,null,null,null,null,"","",null,null,null,null,null,null,null,"","",null,null,null,null,null,null,null,"","",null,null,null,null,null,null,null,"","",null,null,null,null,null,null,null,"","",null,null,null,null,null,null,null,"",""]
[null,null,null,"",null,null,null,null,null,null,null,null,null,"","",null,null,null,null,null,null,null,"","",null,null,null,null,null,null,null,"","",null,null,null,null,null,null,null,"","",null,null,null,null,null,null,null,"","",null,null,null,null,null,null,null,"","",null,null,null,null,null,null,null,"","",null,null,null,null,null,null,null,"","",null,null,null,null,null,null,null,"",""]
[null,null,null,"",null,null,null,null,null,null,null,null,null,"","",null,null,null,null,null,null,null,"","",null,null,null,null,null,null,null,"","",null,null,null,null,null,null,null,"","",null,null,null,null,null,null,null,"","",null,null,null,null,null,null,null,"","",null,null,null,null,null,null,null,"","",null,null,null,null,null,null,null,"","",null,null,null,null,null,null,null,"",""]
[null,null,null,"",null,null,null,null,null,null,null,null,null,"","",null,null,null,null,null,null,null,"","",null,null,null,null,null,null,null,"","",null,null,null,null,null,null,null,"","",null,null,null,null,null,null,null,"","",null,null,null,null,null,null,null,"","",null,null,null,null,null,null,null,"","",null,null,null,null,null,null,null,"","",null,null,null,null,null,null,null,"",""]
[null,null,null,{"$f":"IF(OR(B68=\"\",C68=\"\"),\"\",CH68)","v":""},null,null,null,null,null,null,null,null,null,{"$f":"IF($B68=\"\",\"\",IF($B68>=O68,H$1,\"Does Not Meet Design Speed\"))","v":""},{"$f":"IF(C68=\"\",\"\",LOOKUP($C68,$H$5:$H$12,$K$5:$K$12))","v":""},null,null,null,null,null,null,null,{"$f":"IF($B68=\"\",\"\",IF($B68>=X68,Q$1,N68))","v":""},{"$f":"IF($C68=\"\",\"\",LOOKUP($C68,Q$5:Q$12,T$5:T$12))","v":""},null,null,null,null,null,null,null,{"$f":"IF($B68=\"\",\"\",IF($B68>=AG68,Z$1,W68))","v":""},"",null,null,null,null,null,null,null,"","",null,null,null,null,null,null,null,{"$f":"IF($B68=\"\",\"\",IF($B68>=AY68,AR$1,AO68))","v":""},{"$f":"IF($C68=\"\",\"\",LOOKUP($C68,AR$5:AR$12,AU$5:AU$12))","v":""},null,null,null,null,null,null,null,{"$f":"IF($B68=\"\",\"\",IF($B68>=BH68,BA$1,AX68))","v":""},{"$f":"IF($C68=\"\",\"\",LOOKUP($C68,BA$5:BA$12,BD$5:BD$12))","v":""},null,null,null,null,null,null,null,"","",null,null,null,null,null,null,null,"","",null,null,null,null,null,null,null,"",""]
[null,null,null,"",null,null,null,null,null,null,null,null,null,"","",null,null,null,null,null,null,null,"","",null,null,null,null,null,null,null,"","",null,null,null,null,null,null,null,{"$f":"IF($B69=\"\",\"\",IF($B69>=AP69,AI$1,AF69))","v":""},"",null,null,null,null,null,null,null,"","",null,null,null,null,null,null,null,"","",null,null,null,null,null,null,null,{"$f":"IF($B69=\"\",\"\",IF($B69>=BQ69,BJ$1,BG69))","v":""},{"$f":"IF($C69=\"\",\"\",LOOKUP($C69,BJ$5:BJ$12,BM$5:BM$12))","v":""},null,null,null,null,null,null,null,"","",null,null,null,null,null,null,null,{"$f":"IF($B69=\"\",\"\",IF($B69>=CI69,CB$1,BY69))","v":""},{"$f":"IF($C69=\"\",\"\",LOOKUP($C69,CB$5:CB$12,CE$5:CE$12))","v":""}]
[null,null,null,"",null,null,null,null,null,null,null,null,null,"","",null,null,null,null,null,null,null,"","",null,null,null,null,null,null,null,"","",null,null,null,null,null,null,null,"","",null,null,null,null,null,null,null,"","",null,null,null,null,null,null,null,"","",null,null,null,null,null,null,null,"","",null,null,null,null,null,null,null,{"$f":"IF($B70=\"\",\"\",IF($B70>=BZ70,BS$1,BP70))","v":""},{"$f":"IF($C70=\"\",\"\",LOOKUP($C70,BS$5:BS$12,BV$5:BV$12))","v":""},null,null,null,null,null,null,null,"",""]
[null,null,null,"",null,null,null,null,null,null,null,null,null,"","",null,null,null,null,null,null,null,"","",null,null,null,null,null,null,null,"","",null,null,null,null,null,null,null,"","",null,null,null,null,null,null,null,"","",null,null,null,null,null,null,null,"","",null,null,null,null,null,null,null,"","",null,null,null,null,null,null,null,"","",null,null,null,null,null,null,null,"",""]
[null,null,null,"",null,null,null,null,null,null,null,null,null,"","",null,null,null,null,null,null,null,"","",null,null,null,null,null,null,null,"","",null,null,null,null,null,null,null,"","",null,null,null,null,null,null,null,"","",null,null,null,null,null,null,null,"","",null,null,null,null,null,null,null,"","",null,null,null,null,null,null,null,"","",null,null,null,null,null,null,null,"",""]
[null,null,null,"",null,null,null,null,null,null,null,null,null,"","",null,null,null,null,null,null,null,"","",null,null,null,null,null,null,null,"","",null,null,null,null,null,null,null,"","",null,null,null,null,null,null,null,"","",null,null,null,null,null,null,null,"","",null,null,null,null,null,null,null,"","",null,null,null,null,null,null,null,"","",null,null,null,null,null,null,null,"",""]
[null,null,null,"",null,null,null,null,null,null,null,null,null,"","",null,null,null,null,null,null,null,"","",null,null,null,null,null,null,null,"","",null,null,null,null,null,null,null,"","",null,null,null,null,null,null,null,"","",null,null,null,null,null,null,null,"","",null,null,null,null,null,null,null,"","",null,null,null,null,null,null,null,"","",null,null,null,null,null,null,null,"",""]
[null,null,null,"",null,null,null,null,null,null,null,null,null,"","",null,null,null,null,null,null,null,"","",null,null,null,null,null,null,null,"","",null,null,null,null,null,null,null,"","",null,null,null,null,null,null,null,"","",null,null,null,null,null,null,null,"","",null,null,null,null,null,null,null,"","",null,null,null,null,null,null,null,"","",null,null,null,null,null,null,null,"",""]
[null,null,null,"",null,null,null,null,null,null,null,null,null,"","",null,null,null,null,null,null,null,"","",null,null,null,null,null,null,null,"","",null,null,null,null,null,null,null,"","",null,null,null,null,null,null,null,"","",null,null,null,null,null,null,null,"","",null,null,null,null,null,null,null,"","",null,null,null,null,null,null,null,"","",null,null,null,null,null,null,null,"",""]
[null,null,null,"",null,null,null,null,null,null,null,null,null,"","",null,null,null,null,null,null,null,"","",null,null,null,null,null,null,null,"","",null,null,null,null,null,null,null,"","",null,null,null,null,null,null,null,"","",null,null,null,null,null,null,null,"","",null,null,null,null,null,null,null,"","",null,null,null,null,null,null,null,"","",null,null,null,null,null,null,null,"",""]
[null,null,null,"",null,null,null,null,null,null,null,null,null,"","",null,null,null,null,null,null,null,"","",null,null,null,null,null,null,null,"",{"$f":"IF($C78=\"\",\"\",LOOKUP($C78,Z$5:Z$12,AC$5:AC$12))","v":""},null,null,null,null,null,null,null,"",{"$f":"IF($C78=\"\",\"\",LOOKUP($C78,AI$5:AI$12,AL$5:AL$12))","v":""},null,null,null,null,null,null,null,"","",null,null,null,null,null,null,null,"","",null,null,null,null,null,null,null,"","",null,null,null,null,null,null,null,"","",null,null,null,null,null,null,null,"",""]
[null,null,null,"",null,null,null,null,null,null,null,null,null,"","",null,null,null,null,null,null,null,"","",null,null,null,null,null,null,null,"","",null,null,null,null,null,null,null,"","",null,null,null,null,null,null,null,"","",null,null,null,null,null,null,null,"","",null,null,null,null,null,null,null,"","",null,null,null,null,null,null,null,"","",null,null,null,null,null,null,null,"",""]
[null,null,null,"",null,null,null,null,null,null,null,null,null,"","",null,null,null,null,null,null,null,"","",null,null,null,null,null,null,null,"","",null,null,null,null,null,null,null,"","",null,null,null,null,null,null,null,"","",null,null,null,null,null,null,null,"","",null,null,null,null,null,null,null,"","",null,null,null,null,null,null,null,"","",null,null,null,null,null,null,null,"",""]
[null,null,null,"",null,null,null,null,null,null,null,null,null,"","",null,null,null,null,null,null,null,"","",null,null,null,null,null,null,null,"","",null,null,null,null,null,null,null,"","",null,null,null,null,null,null,null,"","",null,null,null,null,null,null,null,"","",null,null,null,null,null,null,null,"","",null,null,null,null,null,null,null,"","",null,null,null,null,null,null,null,"",""]
[null,null,null,"",null,null,null,null,null,null,null,null,null,"","",null,null,null,null,null,null,null,"","",null,null,null,null,null,null,null,"","",null,null,null,null,null,null,null,"","",null,null,null,null,null,null,null,"","",null,null,null,null,null,null,null,"","",null,null,null,null,null,null,null,"","",null,null,null,null,null,null,null,"","",null,null,null,null,null,null,null,"",""]
[null,null,null,"",null,null,null,null,null,null,null,null,null,"","",null,null,null,null,null,null,null,"","",null,null,null,null,null,null,null,"","",null,null,null,null,null,null,null,"","",null,null,null,null,null,null,null,"","",null,null,null,null,null,null,null,"","",null,null,null,null,null,null,null,"","",null,null,null,null,null,null,null,"","",null,null,null,null,null,null,null,"",""]
[null,null,null,"",null,null,null,null,null,null,null,null,null,"","",null,null,null,null,null,null,null,"","",null,null,null,null,null,null,null,"","",null,null,null,null,null,null,null,"","",null,null,null,null,null,null,null,"","",null,null,null,null,null,null,null,"","",null,null,null,null,null,null,null,"","",null,null,null,null,null,null,null,"","",null,null,null,null,null,null,null,"",""]
[null,null,null,"",null,null,null,null,null,null,null,null,null,"","",null,null,null,null,null,null,null,"","",null,null,null,null,null,null,null,"","",null,null,null,null,null,null,null,"","",null,null,null,null,null,null,null,"","",null,null,null,null,null,null,null,"","",null,null,null,null,null,null,null,"","",null,null,null,null,null,null,null,"","",null,null,null,null,null,null,null,"",""]
[null,null,null,"",null,null,null,null,null,null,null,null,null,"","",null,null,null,null,null,null,null,"","",null,null,null,null,null,null,null,"","",null,null,null,null,null,null,null,"","",null,null,null,null,null,null,null,"","",null,null,null,null,null,null,null,"","",null,null,null,null,null,null,null,"","",null,null,null,null,null,null,null,"","",null,null,null,null,null,null,null,"",""]
[null,null,null,"",null,null,null,null,null,null,null,null,null,"","",null,null,null,null,null,null,null,"","",null,null,null,null,null,null,null,"","",null,null,null,null,null,null,null,"","",null,null,null,null,null,null,null,"","",null,null,null,null,null,null,null,"","",null,null,null,null,null,null,null,"","",null,null,null,null,null,null,null,"","",null,null,null,null,null,null,null,"",""]
[null,null,null,"",null,null,null,null,null,null,null,null,null,"","",null,null,null,null,null,null,null,"","",null,null,null,null,null,null,null,"","",null,null,null,null,null,null,null,"","",null,null,null,null,null,null,null,"","",null,null,null,null,null,null,null,"","",null,null,null,null,null,null,null,"","",null,null,null,null,null,null,null,"","",null,null,null,null,null,null,null,"",""]
[null,null,null,"",null,null,null,null,null,null,null,null,null,"","",null,null,null,null,null,null,null,"","",null,null,null,null,null,null,null,"","",null,null,null,null,null,null,null,"","",null,null,null,null,null,null,null,"","",null,null,null,null,null,null,null,"","",null,null,null,null,null,null,null,"","",null,null,null,null,null,null,null,"","",null,null,null,null,null,null,null,"",""]
[null,null,null,"",null,null,null,null,null,null,null,null,null,"","",null,null,null,null,null,null,null,"","",null,null,null,null,null,null,null,"","",null,null,null,null,null,null,null,"","",null,null,null,null,null,null,null,"","",null,null,null,null,null,null,null,"","",null,null,null,null,null,null,null,"","",null,null,null,null,null,null,null,"","",null,null,null,null,null,null,null,"",""]
[null,null,null,"",null,null,null,null,null,null,null,null,null,"","",null,null,null,null,null,null,null,"","",null,null,null,null,null,null,null,"","",null,null,null,null,null,null,null,"","",null,null,null,null,null,null,null,"","",null,null,null,null,null,null,null,"","",null,null,null,null,null,null,null,"","",null,null,null,null,null,null,null,"","",null,null,null,null,null,null,null,"",""]
[null,null,null,"",null,null,null,null,null,null,null,null,null,"","",null,null,null,null,null,null,null,"","",null,null,null,null,null,null,null,"","",null,null,null,null,null,null,null,"","",null,null,null,null,null,null,null,"","",null,null,null,null,null,null,null,"","",null,null,null,null,null,null,null,"","",null,null,null,null,null,null,null,"","",null,null,null,null,null,null,null,"",""]
[null,null,null,"",null,null,null,null,null,null,null,null,null,"","",null,null,null,null,null,null,null,"","",null,null,null,null,null,null,null,"","",null,null,null,null,null,null,null,"","",null,null,null,null,null,null,null,"","",null,null,null,null,null,null,null,"","",null,null,null,null,null,null,null,"","",null,null,null,null,null,null,null,"","",null,null,null,null,null,null,null,"",""]
[null,null,null,"",null,null,null,null,null,null,null,null,null,"","",null,null,null,null,null,null,null,"","",null,null,null,null,null,null,null,"","",null,null,null,null,null,null,null,"","",null,null,null,null,null,null,null,"","",null,null,null,null,null,null,null,"","",null,null,null,null,null,null,null,"","",null,null,null,null,null,null,null,"","",null,null,null,null,null,null,null,"",""]
[null,null,null,"",null,null,null,null,null,null,null,null,null,"","",null,null,null,null,null,null,null,"","",null,null,null,null,null,null,null,"","",null,null,null,null,null,null,null,"","",null,null,null,null,null,null,null,"","",null,null,null,null,null,null,null,"","",null,null,null,null,null,null,null,"","",null,null,null,null,null,null,null,"","",null,null,null,null,null,null,null,"",""]
[null,null,null,"",null,null,null,null,null,null,null,null,null,"","",null,null,null,null,null,null,null,"","",null,null,null,null,null,null,null,"","",null,null,null,null,null,null,null,"","",null,null,null,null,null,null,null,"","",null,null,null,null,null,null,null,"","",null,null,null,null,null,null,null,"","",null,null,null,null,null,null,null,"","",null,null,null,null,null,null,null,"",""]
[null,null,null,"",null,null,null,null,null,null,null,null,null,"","",null,null,null,null,null,null,null,"","",null,null,null,null,null,null,null,"","",null,null,null,null,null,null,null,"","",null,null,null,null,null,null,null,"","",null,null,null,null,null,null,null,"","",null,null,null,null,null,null,null,"","",null,null,null,null,null,null,null,"","",null,null,null,null,null,null,null,"",""]
[null,null,null,"",null,null,null,null,null,null,null,null,null,"","",null,null,null,null,null,null,null,"","",null,null,null,null,null,null,null,"","",null,null,null,null,null,null,null,"","",null,null,null,null,null,null,null,"","",null,null,null,null,null,null,null,"","",null,null,null,null,null,null,null,"","",null,null,null,null,null,null,null,"","",null,null,null,null,null,null,null,"",""]
[null,null,null,"",null,null,null,null,null,null,null,null,null,"","",null,null,null,null,null,null,null,"","",null,null,null,null,null,null,null,"","",null,null,null,null,null,null,null,"","",null,null,null,null,null,null,null,"","",null,null,null,null,null,null,null,"","",null,null,null,null,null,null,null,"","",null,null,null,null,null,null,null,"","",null,null,null,null,null,null,null,"",""]
[null,null,null,"",null,null,null,null,null,null,null,null,null,"","",null,null,null,null,null,null,null,"","",null,null,null,null,null,null,null,"",{"$f":"IF($C100=\"\",\"\",LOOKUP($C100,Z$5:Z$12,AC$5:AC$12))","v":""},null,null,null,null,null,null,null,"","",null,null,null,null,null,null,null,"","",null,null,null,null,null,null,null,"","",null,null,null,null,null,null,null,"","",null,null,null,null,null,null,null,"","",null,null,null,null,null,null,null,"",""]
[null,null,null,"",null,null,null,null,null,null,null,null,null,"","",null,null,null,null,null,null,null,"","",null,null,null,null,null,null,null,"","",null,null,null,null,null,null,null,"","",null,null,null,null,null,null,null,"","",null,null,null,null,null,null,null,"","",null,null,null,null,null,null,null,"","",null,null,null,null,null,null,null,"","",null,null,null,null,null,null,null,"",""]
[null,null,null,"",null,null,null,null,null,null,null,null,null,"","",null,null,null,null,null,null,null,"","",null,null,null,null,null,null,null,"","",null,null,null,null,null,null,null,"","",null,null,null,null,null,null,null,"","",null,null,null,null,null,null,null,"","",null,null,null,null,null,null,null,"","",null,null,null,null,null,null,null,"","",null,null,null,null,null,null,null,"",""]
[null,null,null,"",null,null,null,null,null,null,null,null,null,"","",null,null,null,null,null,null,null,"","",null,null,null,null,null,null,null,"","",null,null,null,null,null,null,null,"","",null,null,null,null,null,null,null,"","",null,null,null,null,null,null,null,"","",null,null,null,null,null,null,null,"","",null,null,null,null,null,null,null,"","",null,null,null,null,null,null,null,"",""]

{"sheet":"Urban","index":2,"n_rows":104,"n_cols":72,"rows_kept":104,"cut":false,"hidden":true,"merged":[[2,63,4,65],[2,66,3,67],[2,68,3,69],[2,24,3,25],[2,29,4,29],[2,30,4,32],[2,33,3,34],[2,35,3,36],[2,40,4,40],[2,62,4,62],[2,7,4,7],[2,8,4,10],[2,11,3,12],[2,13,3,14],[2,18,4,18],[2,19,4,21],[2,22,3,23],[2,52,4,54],[2,55,3,56],[2,57,3,58],[2,41,4,43],[2,44,3,45],[2,46,3,47],[2,51,4,51],[1,62,1,69],[1,7,1,14],[1,18,1,25],[1,29,1,36],[1,40,1,47],[1,51,1,58]]}
[null,null,null,null,null,null,null,20,null,null,null,null,null,null,null,null,null,null,25,null,null,null,null,null,null,null,null,null,null,30,null,null,null,null,null,null,null,null,null,null,35,null,null,null,null,null,null,null,null,null,null,40,null,null,null,null,null,null,null,null,null,null,45]
["PI Station","Radius, R          (ft)","Superelevation, e            (ft/ft)","Design Speed, V","Minimum V =",{"$f":"MIN($D$3:$D$104)","v":0},null,"V = 20 mph",null,null,null,null,null,null,null,"Design Speed","Minimum Radius",null,"V = 25 mph",null,null,null,null,null,null,null,"Design Speed","Minimum Radius",null,"V = 30 mph",null,null,null,null,null,null,null,"Design Speed","Minimum Radius",null,"V = 35 mph",null,null,null,null,null,null,null,"Design Speed","Minimum Radius",null,"V = 40 mph",null,null,null,null,null,null,null,"Design Speed","Minimum Radius",null,"V = 45 mph",null,null,null,null,null,null,null,"Design Speed","Minimum Radius"]
[null,null,null,{"$f":"IF(OR(B3=\"\",C3=\"\"),\"\",BS3)","v":""},null,null,null,"e","R (ft)",null,null,"Trans. Length\n(Two-Lane)",null,"Trans. Length\n(Multilane)",null,{"$f":"IF($B3=\"\",\"\",IF($B3>=Q3,H$1,\"Does Not Meet Design Speed\"))","v":""},{"$f":"IF($C3=\"\",\"\",LOOKUP($C3,H$6:H$9,K$6:K$9))","v":""},null,"e","R (ft)",null,null,"Trans. Length\n(Two-Lane)",null,"Trans. Length\n(Multilane)",null,{"$f":"IF($B3=\"\",\"\",IF($B3>=AB3,S$1,P3))","v":""},{"$f":"IF($C3=\"\",\"\",LOOKUP($C3,S$6:S$9,V$6:V$9))","v":""},null,"e","R (ft)",null,null,"Trans. Length\n(Two-Lane)",null,"Trans. Length\n(Multilane)",null,{"$f":"IF($B3=\"\",\"\",IF($B3>=AM3,AD$1,AA3))","v":""},{"$f":"IF($C3=\"\",\"\",LOOKUP($C3,AD$6:AD$9,AG$6:AG$9))","v":""},null,"e","R (ft)",null,null,"Trans. Length\n(Two-Lane)",null,"Trans. Length\n(Multilane)",null,{"$f":"IF($B3=\"\",\"\",IF($B3>=AX3,AO$1,AL3))","v":""},{"$f":"IF($C3=\"\",\"\",LOOKUP($C3,AO$6:AO$9,AR$6:AR$9))","v":""},null,"e","R (ft)",null,null,"Trans. Length\n(Two-Lane)",null,"Trans. Length\n(Multilane)",null,{"$f":"IF($B3=\"\",\"\",IF($B3>=BI3,AZ$1,AW3))","v":""},{"$f":"IF($C3=\"\",\"\",LOOKUP($C3,AZ$6:AZ$9,BC$6:BC$9))","v":""},null,"e","R (ft)",null,null,"Trans. Length\n(Two-Lane)",null,"Trans. Length\n(Multilane)",null,{"$f":"IF($B3=\"\",\"\",IF($B3>=BT3,BK$1,BH3))","v":""},{"$f":"IF($C3=\"\",\"\",LOOKUP($C3,BK$6:BK$9,BN$6:BN$9))","v":""}]
[null,null,null,{"$f":"IF(OR(B4=\"\",C4=\"\"),\"\",BS4)","v":""},null,null,null,null,null,null,null,null,null,null,null,{"$f":"IF($B4=\"\",\"\",IF($B4>=Q4,H$1,\"Does Not Meet Design Speed\"))","v":""},{"$f":"IF(C4=\"\",\"\",LOOKUP($C4,$H$6:$H$9,$K$6:$K$9))","v":""},null,null,null,null,null,null,null,null,null,{"$f":"IF($B4=\"\",\"\",IF($B4>=AB4,S$1,P4))","v":""},{"$f":"IF($C4=\"\",\"\",LOOKUP($C4,S$6:S$9,V$6:V$9))","v":""},null,null,null,null,null,null,null,null,null,{"$f":"IF($B4=\"\",\"\",IF($B4>=AM4,AD$1,AA4))","v":""},{"$f":"IF($C4=\"\",\"\",LOOKUP($C4,AD$6:AD$9,AG$6:AG$9))","v":""},null,null,null,null,null,null,null,null,null,{"$f":"IF($B4=\"\",\"\",IF($B4>=AX4,AO$1,AL4))","v":""},{"$f":"IF($C4=\"\",\"\",LOOKUP($C4,AO$6:AO$9,AR$6:AR$9))","v":""},null,null,null,null,null,null,null,null,null,{"$f":"IF($B4=\"\",\"\",IF($B4>=BI4,AZ$1,AW4))","v":""},{"$f":"IF($C4=\"\",\"\",LOOKUP($C4,AZ$6:AZ$9,BC$6:BC$9))","v":""},null,null,null,null,null,null,null,null,null,{"$f":"IF($B4=\"\",\"\",IF($B4>=BT4,BK$1,BH4))","v":""},{"$f":"IF($C4=\"\",\"\",LOOKUP($C4,BK$6:BK$9,BN$6:BN$9))","v":""}]
[null,null,null,{"$f":"IF(OR(B5=\"\",C5=\"\"),\"\",BS5)","v":""},null,null,null,null,null,null,null,"L (ft)","TR (ft)","L (ft)","TR (ft)",null,null,null,null,null,null,null,"L (ft)","TR (ft)","L (ft)","TR (ft)",null,null,null,null,null,null,null,"L (ft)","TR (ft)","L (ft)","TR (ft)",null,null,null,null,null,null,null,"L (ft)","TR (ft)","L (ft)","TR (ft)",null,null,null,null,null,null,null,"L (ft)","TR (ft)","L (ft)","TR (ft)",null,null,null,null,null,null,null,"L (ft)","TR (ft)","L (ft)","TR (ft)"]
[null,null,null,"",null,null,null,"NC",null,"R ≥",107,0,0,0,0,"",{"$f":"IF(C6=\"\",\"\",LOOKUP($C6,$H$6:$H$9,$K$6:$K$9))","v":""},null,"NC",null,"R ≥",198,0,0,0,0,"",{"$f":"IF($C6=\"\",\"\",LOOKUP($C6,S$6:S$9,V$6:V$9))","v":""},null,"NC",null,"R ≥",333,0,0,0,0,"",{"$f":"IF($C6=\"\",\"\",LOOKUP($C6,AD$6:AD$9,AG$6:AG$9))","v":""},null,"NC",null,"R ≥",510,0,0,0,0,{"$f":"IF($B6=\"\",\"\",IF($B6>=AX6,AO$1,AL6))","v":""},{"$f":"IF($C6=\"\",\"\",LOOKUP($C6,AO$6:AO$9,AR$6:AR$9))","v":""},null,"NC",null,"R ≥",762,0,0,0,0,"",{"$f":"IF($C6=\"\",\"\",LOOKUP($C6,AZ$6:AZ$9,BC$6:BC$9))","v":""},null,"NC",null,"R ≥",1039,0,0,0,0,"",{"$f":"IF($C6=\"\",\"\",LOOKUP($C6,BK$6:BK$9,BN$6:BN$9))","v":""}]
[null,null,null,"",null,null,null,0.02,107,"> R ≥",92,32,32,50,50,"","",null,0.02,198,"> R ≥",167,34,34,52,52,"","",null,0.02,333,"> R ≥",273,36,36,56,56,"","",null,0.02,510,"> R ≥",408,40,40,58,58,"","",null,0.02,762,"> R ≥",593,42,42,62,62,"","",null,0.02,1039,"> R ≥",794,44,44,68,68,"",""]
[null,null,null,"",null,null,null,0.03,92,"> R ≥",89,48,32,75,50,"","",null,0.03,167,"> R ≥",160,51,34,78,52,"","",null,0.03,273,"> R ≥",261,54,36,84,56,"","",null,0.03,408,"> R ≥",389,60,40,87,58,"","",null,0.03,593,"> R ≥",561,63,42,93,62,"","",null,0.03,794,"> R ≥",750,66,44,102,68,"",""]
[null,null,null,"",null,null,null,0.04,89,"> R ≥",86,64,32,100,50,"","",null,0.04,160,"> R ≥",154,68,34,104,52,"","",null,0.04,261,"> R ≥",250,72,36,112,56,"","",null,0.04,389,"> R ≥",371,80,40,116,58,"","",null,0.04,561,"> R ≥",533,84,42,124,62,"","",null,0.04,750,"> R ≥",711,88,44,136,68,"",""]
[null,null,null,"",null,null,null,null,null,null,null,null,null,null,null,"","",null,null,null,null,null,null,null,null,null,"","",null,null,null,null,null,null,null,null,null,"","",null,null,null,null,null,null,null,null,null,"","",null,null,null,null,null,null,null,null,null,"","",null,null,null,null,null,null,null,null,null,"",""]
[null,null,null,"",null,null,null,null,null,null,null,null,null,null,null,"","",null,null,null,null,null,null,null,null,null,"","",null,null,null,null,null,null,null,null,null,"","",null,null,null,null,null,null,null,null,null,"","",null,null,null,null,null,null,null,null,null,"","",null,null,null,null,null,null,null,null,null,"",""]
[null,null,null,"",null,null,null,null,null,null,null,null,null,null,null,"","",null,null,null,null,null,null,null,null,null,"","",null,null,null,null,null,null,null,null,null,"","",null,null,null,null,null,null,null,null,null,"","",null,null,null,null,null,null,null,null,null,"","",null,null,null,null,null,null,null,null,null,"",""]
[null,null,null,"",null,null,null,null,null,null,null,null,null,null,null,"","",null,null,null,null,null,null,null,null,null,"","",null,null,null,null,null,null,null,null,null,"","",null,null,null,null,null,null,null,null,null,"","",null,null,null,null,null,null,null,null,null,"","",null,null,null,null,null,null,null,null,null,"",""]
[null,null,null,"",null,null,null,null,null,null,null,null,null,null,null,"","",null,null,null,null,null,null,null,null,null,"","",null,null,null,null,null,null,null,null,null,"","",null,null,null,null,null,null,null,null,null,"","",null,null,null,null,null,null,null,null,null,"","",null,null,null,null,null,null,null,null,null,"",""]
[null,null,null,"",null,null,null,null,null,null,null,null,null,null,null,"","",null,null,null,null,null,null,null,null,null,"","",null,null,null,null,null,null,null,null,null,"","",null,null,null,null,null,null,null,null,null,"","",null,null,null,null,null,null,null,null,null,"","",null,null,null,null,null,null,null,null,null,"",""]
[null,null,null,"",null,null,null,null,null,null,null,null,null,null,null,"","",null,null,null,null,null,null,null,null,null,"","",null,null,null,null,null,null,null,null,null,"","",null,null,null,null,null,null,null,null,null,"","",null,null,null,null,null,null,null,null,null,"","",null,null,null,null,null,null,null,null,null,"",""]
[null,null,null,"",null,null,null,null,null,null,null,null,null,null,null,"","",null,null,null,null,null,null,null,null,null,"","",null,null,null,null,null,null,null,null,null,"","",null,null,null,null,null,null,null,null,null,"","",null,null,null,null,null,null,null,null,null,"","",null,null,null,null,null,null,null,null,null,"",""]
[null,null,null,"",null,null,null,null,null,null,null,null,null,null,null,"","",null,null,null,null,null,null,null,null,null,"","",null,null,null,null,null,null,null,null,null,"","",null,null,null,null,null,null,null,null,null,"","",null,null,null,null,null,null,null,null,null,"","",null,null,null,null,null,null,null,null,null,"",""]
[null,null,null,"",null,null,null,null,null,null,null,null,null,null,null,"","",null,null,null,null,null,null,null,null,null,"","",null,null,null,null,null,null,null,null,null,"","",null,null,null,null,null,null,null,null,null,"","",null,null,null,null,null,null,null,null,null,"","",null,null,null,null,null,null,null,null,null,"",""]
[null,null,null,"",null,null,null,null,null,null,null,null,null,null,null,"","",null,null,null,null,null,null,null,null,null,"","",null,null,null,null,null,null,null,null,null,"","",null,null,null,null,null,null,null,null,null,"","",null,null,null,null,null,null,null,null,null,"","",null,null,null,null,null,null,null,null,null,"",""]
[null,null,null,"",null,null,null,null,null,null,null,null,null,null,null,"","",null,null,null,null,null,null,null,null,null,"","",null,null,null,null,null,null,null,null,null,"","",null,null,null,null,null,null,null,null,null,"","",null,null,null,null,null,null,null,null,null,"","",null,null,null,null,null,null,null,null,null,"",""]
[null,null,null,"",null,null,null,null,null,null,null,null,null,null,null,"","",null,null,null,null,null,null,null,null,null,"","",null,null,null,null,null,null,null,null,null,"","",null,null,null,null,null,null,null,null,null,"","",null,null,null,null,null,null,null,null,null,"","",null,null,null,null,null,null,null,null,null,"",""]
[null,null,null,"",null,null,null,null,null,null,null,null,null,null,null,"","",null,null,null,null,null,null,null,null,null,"","",null,null,null,null,null,null,null,null,null,"","",null,null,null,null,null,null,null,null,null,"","",null,null,null,null,null,null,null,null,null,"","",null,null,null,null,null,null,null,null,null,"",""]
[null,null,null,"",null,null,null,null,null,null,null,null,null,null,null,"","",null,null,null,null,null,null,null,null,null,"","",null,null,null,null,null,null,null,null,null,"","",null,null,null,null,null,null,null,null,null,"","",null,null,null,null,null,null,null,null,null,"","",null,null,null,null,null,null,null,null,null,"",""]
[null,null,null,"",null,null,null,null,null,null,null,null,null,null,null,"","",null,null,null,null,null,null,null,null,null,"","",null,null,null,null,null,null,null,null,null,"","",null,null,null,null,null,null,null,null,null,"","",null,null,null,null,null,null,null,null,null,"","",null,null,null,null,null,null,null,null,null,"",""]
[null,null,null,"",null,null,null,null,null,null,null,null,null,null,null,"","",null,null,null,null,null,null,null,null,null,"","",null,null,null,null,null,null,null,null,null,"","",null,null,null,null,null,null,null,null,null,"","",null,null,null,null,null,null,null,null,null,"","",null,null,null,null,null,null,null,null,null,"",""]
[null,null,null,"",null,null,null,null,null,null,null,null,null,null,null,"","",null,null,null,null,null,null,null,null,null,"","",null,null,null,null,null,null,null,null,null,"","",null,null,null,null,null,null,null,null,null,"","",null,null,null,null,null,null,null,null,null,"","",null,null,null,null,null,null,null,null,null,"",""]
[null,null,null,"",null,null,null,null,null,null,null,null,null,null,null,"","",null,null,null,null,null,null,null,null,null,"","",null,null,null,null,null,null,null,null,null,"","",null,null,null,null,null,null,null,null,null,"","",null,null,null,null,null,null,null,null,null,"","",null,null,null,null,null,null,null,null,null,"",""]
[null,null,null,"",null,null,null,null,null,null,null,null,null,null,null,"","",null,null,null,null,null,null,null,null,null,"","",null,null,null,null,null,null,null,null,null,"","",null,null,null,null,null,null,null,null,null,"","",null,null,null,null,null,null,null,null,null,"","",null,null,null,null,null,null,null,null,null,"",""]
[null,null,null,"",null,null,null,null,null,null,null,null,null,null,null,"","",null,null,null,null,null,null,null,null,null,"","",null,null,null,null,null,null,null,null,null,"","",null,null,null,null,null,null,null,null,null,"","",null,null,null,null,null,null,null,null,null,"","",null,null,null,null,null,null,null,null,null,"",""]
[null,null,null,"",null,null,null,null,null,null,null,null,null,null,null,"","",null,null,null,null,null,null,null,null,null,"","",null,null,null,null,null,null,null,null,null,"","",null,null,null,null,null,null,null,null,null,"","",null,null,null,null,null,null,null,null,null,"","",null,null,null,null,null,null,null,null,null,"",""]
[null,null,null,"",null,null,null,null,null,null,null,null,null,null,null,"","",null,null,null,null,null,null,null,null,null,"","",null,null,null,null,null,null,null,null,null,"","",null,null,null,null,null,null,null,null,null,"","",null,null,null,null,null,null,null,null,null,"","",null,null,null,null,null,null,null,null,null,"",""]
[null,null,null,"",null,null,null,null,null,null,null,null,null,null,null,"","",null,null,null,null,null,null,null,null,null,"","",null,null,null,null,null,null,null,null,null,"","",null,null,null,null,null,null,null,null,null,"","",null,null,null,null,null,null,null,null,null,"","",null,null,null,null,null,null,null,null,null,"",""]
[null,null,null,"",null,null,null,null,null,null,null,null,null,null,null,"","",null,null,null,null,null,null,null,null,null,"","",null,null,null,null,null,null,null,null,null,"","",null,null,null,null,null,null,null,null,null,"","",null,null,null,null,null,null,null,null,null,"","",null,null,null,null,null,null,null,null,null,"",""]
[null,null,null,"",null,null,null,null,null,null,null,null,null,null,null,"","",null,null,null,null,null,null,null,null,null,"","",null,null,null,null,null,null,null,null,null,"","",null,null,null,null,null,null,null,null,null,"","",null,null,null,null,null,null,null,null,null,"","",null,null,null,null,null,null,null,null,null,"",""]
[null,null,null,"",null,null,null,null,null,null,null,null,null,null,null,"","",null,null,null,null,null,null,null,null,null,"","",null,null,null,null,null,null,null,null,null,"","",null,null,null,null,null,null,null,null,null,"","",null,null,null,null,null,null,null,null,null,"","",null,null,null,null,null,null,null,null,null,"",""]
[null,null,null,"",null,null,null,null,null,null,null,null,null,null,null,"","",null,null,null,null,null,null,null,null,null,"","",null,null,null,null,null,null,null,null,null,"","",null,null,null,null,null,null,null,null,null,"","",null,null,null,null,null,null,null,null,null,"","",null,null,null,null,null,null,null,null,null,"",""]
[null,null,null,"",null,null,null,null,null,null,null,null,null,null,null,"",{"$f":"IF(C38=\"\",\"\",LOOKUP($C38,$H$6:$H$9,$K$6:$K$9))","v":""},null,null,null,null,null,null,null,null,null,"",{"$f":"IF($C38=\"\",\"\",LOOKUP($C38,S$6:S$9,V$6:V$9))","v":""},null,null,null,null,null,null,null,null,null,"",{"$f":"IF($C38=\"\",\"\",LOOKUP($C38,AD$6:AD$9,AG$6:AG$9))","v":""},null,null,null,null,null,null,null,null,null,"",{"$f":"IF($C38=\"\",\"\",LOOKUP($C38,AO$6:AO$9,AR$6:AR$9))","v":""},null,null,null,null,null,null,null,null,null,"",{"$f":"IF($C38=\"\",\"\",LOOKUP($C38,AZ$6:AZ$9,BC$6:BC$9))","v":""},null,null,null,null,null,null,null,null,null,"",{"$f":"IF($C38=\"\",\"\",LOOKUP($C38,BK$6:BK$9,BN$6:BN$9))","v":""}]
[null,null,null,"",null,null,null,null,null,null,null,null,null,null,null,"","",null,null,null,null,null,null,null,null,null,"","",null,null,null,null,null,null,null,null,null,"","",null,null,null,null,null,null,null,null,null,"","",null,null,null,null,null,null,null,null,null,"","",null,null,null,null,null,null,null,null,null,"",""]
[null,null,null,"",null,null,null,null,null,null,null,null,null,null,null,"","",null,null,null,null,null,null,null,null,null,"","",null,null,null,null,null,null,null,null,null,"","",null,null,null,null,null,null,null,null,null,"","",null,null,null,null,null,null,null,null,null,"","",null,null,null,null,null,null,null,null,null,"",""]
[null,null,null,"",null,null,null,null,null,null,null,null,null,null,null,"","",null,null,null,null,null,null,null,null,null,"","",null,null,null,null,null,null,null,null,null,"","",null,null,null,null,null,null,null,null,null,"","",null,null,null,null,null,null,null,null,null,"","",null,null,null,null,null,null,null,null,null,"",""]
[null,null,null,"",null,null,null,null,null,null,null,null,null,null,null,"","",null,null,null,null,null,null,null,null,null,"","",null,null,null,null,null,null,null,null,null,"","",null,null,null,null,null,null,null,null,null,"","",null,null,null,null,null,null,null,null,null,"","",null,null,null,null,null,null,null,null,null,"",""]
[null,null,null,"",null,null,null,null,null,null,null,null,null,null,null,"","",null,null,null,null,null,null,null,null,null,"","",null,null,null,null,null,null,null,null,null,"","",null,null,null,null,null,null,null,null,null,"","",null,null,null,null,null,null,null,null,null,"","",null,null,null,null,null,null,null,null,null,"",""]
[null,null,null,"",null,null,null,null,null,null,null,null,null,null,null,"","",null,null,null,null,null,null,null,null,null,"","",null,null,null,null,null,null,null,null,null,"","",null,null,null,null,null,null,null,null,null,"","",null,null,null,null,null,null,null,null,null,"","",null,null,null,null,null,null,null,null,null,"",""]
[null,null,null,"",null,null,null,null,null,null,null,null,null,null,null,"","",null,null,null,null,null,null,null,null,null,"","",null,null,null,null,null,null,null,null,null,"","",null,null,null,null,null,null,null,null,null,"","",null,null,null,null,null,null,null,null,null,"","",null,null,null,null,null,null,null,null,null,"",""]
[null,null,null,"",null,null,null,null,null,null,null,null,null,null,null,"","",null,null,null,null,null,null,null,null,null,"","",null,null,null,null,null,null,null,null,null,"","",null,null,null,null,null,null,null,null,null,"","",null,null,null,null,null,null,null,null,null,"","",null,null,null,null,null,null,null,null,null,"",""]
[null,null,null,"",null,null,null,null,null,null,null,null,null,null,null,"","",null,null,null,null,null,null,null,null,null,"","",null,null,null,null,null,null,null,null,null,"","",null,null,null,null,null,null,null,null,null,"","",null,null,null,null,null,null,null,null,null,"","",null,null,null,null,null,null,null,null,null,"",""]
[null,null,null,"",null,null,null,null,null,null,null,null,null,null,null,"","",null,null,null,null,null,null,null,null,null,"","",null,null,null,null,null,null,null,null,null,"","",null,null,null,null,null,null,null,null,null,"","",null,null,null,null,null,null,null,null,null,"","",null,null,null,null,null,null,null,null,null,"",""]
[null,null,null,"",null,null,null,null,null,null,null,null,null,null,null,"","",null,null,null,null,null,null,null,null,null,"","",null,null,null,null,null,null,null,null,null,"","",null,null,null,null,null,null,null,null,null,"","",null,null,null,null,null,null,null,null,null,"","",null,null,null,null,null,null,null,null,null,"",""]
[null,null,null,"",null,null,null,null,null,null,null,null,null,null,null,"","",null,null,null,null,null,null,null,null,null,"","",null,null,null,null,null,null,null,null,null,"","",null,null,null,null,null,null,null,null,null,"","",null,null,null,null,null,null,null,null,null,"","",null,null,null,null,null,null,null,null,null,"",""]
[null,null,null,"",null,null,null,null,null,null,null,null,null,null,null,"","",null,null,null,null,null,null,null,null,null,"","",null,null,null,null,null,null,null,null,null,"","",null,null,null,null,null,null,null,null,null,"","",null,null,null,null,null,null,null,null,null,"","",null,null,null,null,null,null,null,null,null,"",""]
[null,null,null,"",null,null,null,null,null,null,null,null,null,null,null,"","",null,null,null,null,null,null,null,null,null,"","",null,null,null,null,null,null,null,null,null,"","",null,null,null,null,null,null,null,null,null,"","",null,null,null,null,null,null,null,null,null,"","",null,null,null,null,null,null,null,null,null,"",""]
[null,null,null,"",null,null,null,null,null,null,null,null,null,null,null,"","",null,null,null,null,null,null,null,null,null,"","",null,null,null,null,null,null,null,null,null,"","",null,null,null,null,null,null,null,null,null,"","",null,null,null,null,null,null,null,null,null,"","",null,null,null,null,null,null,null,null,null,"",""]
[null,null,null,"",null,null,null,null,null,null,null,null,null,null,null,"","",null,null,null,null,null,null,null,null,null,"","",null,null,null,null,null,null,null,null,null,"","",null,null,null,null,null,null,null,null,null,"","",null,null,null,null,null,null,null,null,null,"","",null,null,null,null,null,null,null,null,null,"",""]
[null,null,null,"",null,null,null,null,null,null,null,null,null,null,null,"","",null,null,null,null,null,null,null,null,null,"","",null,null,null,null,null,null,null,null,null,"","",null,null,null,null,null,null,null,null,null,"","",null,null,null,null,null,null,null,null,null,"","",null,null,null,null,null,null,null,null,null,"",""]
[null,null,null,"",null,null,null,null,null,null,null,null,null,null,null,"","",null,null,null,null,null,null,null,null,null,"","",null,null,null,null,null,null,null,null,null,"","",null,null,null,null,null,null,null,null,null,"","",null,null,null,null,null,null,null,null,null,"","",null,null,null,null,null,null,null,null,null,"",""]
[null,null,null,"",null,null,null,null,null,null,null,null,null,null,null,"","",null,null,null,null,null,null,null,null,null,"","",null,null,null,null,null,null,null,null,null,"","",null,null,null,null,null,null,null,null,null,"","",null,null,null,null,null,null,null,null,null,"","",null,null,null,null,null,null,null,null,null,"",""]
[null,null,null,"",null,null,null,null,null,null,null,null,null,null,null,"","",null,null,null,null,null,null,null,null,null,"","",null,null,null,null,null,null,null,null,null,"","",null,null,null,null,null,null,null,null,null,"","",null,null,null,null,null,null,null,null,null,"","",null,null,null,null,null,null,null,null,null,"",""]
[null,null,null,"",null,null,null,null,null,null,null,null,null,null,null,"","",null,null,null,null,null,null,null,null,null,"","",null,null,null,null,null,null,null,null,null,"","",null,null,null,null,null,null,null,null,null,"","",null,null,null,null,null,null,null,null,null,"","",null,null,null,null,null,null,null,null,null,"",""]
[null,null,null,"",null,null,null,null,null,null,null,null,null,null,null,"","",null,null,null,null,null,null,null,null,null,"","",null,null,null,null,null,null,null,null,null,"","",null,null,null,null,null,null,null,null,null,"","",null,null,null,null,null,null,null,null,null,"","",null,null,null,null,null,null,null,null,null,"",""]
[null,null,null,"",null,null,null,null,null,null,null,null,null,null,null,"","",null,null,null,null,null,null,null,null,null,"","",null,null,null,null,null,null,null,null,null,"","",null,null,null,null,null,null,null,null,null,"","",null,null,null,null,null,null,null,null,null,"","",null,null,null,null,null,null,null,null,null,"",""]
[null,null,null,"",null,null,null,null,null,null,null,null,null,null,null,"","",null,null,null,null,null,null,null,null,null,"","",null,null,null,null,null,null,null,null,null,"","",null,null,null,null,null,null,null,null,null,"","",null,null,null,null,null,null,null,null,null,"","",null,null,null,null,null,null,null,null,null,"",""]
[null,null,null,"",null,null,null,null,null,null,null,null,null,null,null,"","",null,null,null,null,null,null,null,null,null,"","",null,null,null,null,null,null,null,null,null,"","",null,null,null,null,null,null,null,null,null,"","",null,null,null,null,null,null,null,null,null,"","",null,null,null,null,null,null,null,null,null,"",""]
[null,null,null,"",null,null,null,null,null,null,null,null,null,null,null,"","",null,null,null,null,null,null,null,null,null,"","",null,null,null,null,null,null,null,null,null,"","",null,null,null,null,null,null,null,null,null,"","",null,null,null,null,null,null,null,null,null,"","",null,null,null,null,null,null,null,null,null,"",""]
[null,null,null,"",null,null,null,null,null,null,null,null,null,null,null,"","",null,null,null,null,null,null,null,null,null,"","",null,null,null,null,null,null,null,null,null,"","",null,null,null,null,null,null,null,null,null,"","",null,null,null,null,null,null,null,null,null,"","",null,null,null,null,null,null,null,null,null,"",""]
[null,null,null,"",null,null,null,null,null,null,null,null,null,null,null,"","",null,null,null,null,null,null,null,null,null,"","",null,null,null,null,null,null,null,null,null,"","",null,null,null,null,null,null,null,null,null,"","",null,null,null,null,null,null,null,null,null,"","",null,null,null,null,null,null,null,null,null,"",""]
[null,null,null,"",null,null,null,null,null,null,null,null,null,null,null,"","",null,null,null,null,null,null,null,null,null,"","",null,null,null,null,null,null,null,null,null,"","",null,null,null,null,null,null,null,null,null,"","",null,null,null,null,null,null,null,null,null,"","",null,null,null,null,null,null,null,null,null,"",""]
[null,null,null,"",null,null,null,null,null,null,null,null,null,null,null,"","",null,null,null,null,null,null,null,null,null,"","",null,null,null,null,null,null,null,null,null,"","",null,null,null,null,null,null,null,null,null,"","",null,null,null,null,null,null,null,null,null,"","",null,null,null,null,null,null,null,null,null,"",""]
[null,null,null,{"$f":"IF(OR(B69=\"\",C69=\"\"),\"\",BS69)","v":""},null,null,null,null,null,null,null,null,null,null,null,{"$f":"IF($B69=\"\",\"\",IF($B69>=Q69,H$1,\"Does Not Meet Design Speed\"))","v":""},"",null,null,null,null,null,null,null,null,null,{"$f":"IF($B69=\"\",\"\",IF($B69>=AB69,S$1,P69))","v":""},"",null,null,null,null,null,null,null,null,null,{"$f":"IF($B69=\"\",\"\",IF($B69>=AM69,AD$1,AA69))","v":""},"",null,null,null,null,null,null,null,null,null,"","",null,null,null,null,null,null,null,null,null,{"$f":"IF($B69=\"\",\"\",IF($B69>=BI69,AZ$1,AW69))","v":""},"",null,null,null,null,null,null,null,null,null,{"$f":"IF($B69=\"\",\"\",IF($B69>=BT69,BK$1,BH69))","v":""},""]
[null,null,null,"",null,null,null,null,null,null,null,null,null,null,null,"",{"$f":"IF(C70=\"\",\"\",LOOKUP($C70,$H$6:$H$9,$K$6:$K$9))","v":""},null,null,null,null,null,null,null,null,null,"",{"$f":"IF($C70=\"\",\"\",LOOKUP($C70,S$6:S$9,V$6:V$9))","v":""},null,null,null,null,null,null,null,null,null,"",{"$f":"IF($C70=\"\",\"\",LOOKUP($C70,AD$6:AD$9,AG$6:AG$9))","v":""},null,null,null,null,null,null,null,null,null,{"$f":"IF($B70=\"\",\"\",IF($B70>=AX70,AO$1,AL70))","v":""},{"$f":"IF($C70=\"\",\"\",LOOKUP($C70,AO$6:AO$9,AR$6:AR$9))","v":""},null,null,null,null,null,null,null,null,null,"",{"$f":"IF($C70=\"\",\"\",LOOKUP($C70,AZ$6:AZ$9,BC$6:BC$9))","v":""},null,null,null,null,null,null,null,null,null,"",{"$f":"IF($C70=\"\",\"\",LOOKUP($C70,BK$6:BK$9,BN$6:BN$9))","v":""}]
[null,null,null,"",null,null,null,null,null,null,null,null,null,null,null,"","",null,null,null,null,null,null,null,null,null,"","",null,null,null,null,null,null,null,null,null,"","",null,null,null,null,null,null,null,null,null,"","",null,null,null,null,null,null,null,null,null,"","",null,null,null,null,null,null,null,null,null,"",""]
[null,null,null,"",null,null,null,null,null,null,null,null,null,null,null,"","",null,null,null,null,null,null,null,null,null,"","",null,null,null,null,null,null,null,null,null,"","",null,null,null,null,null,null,null,null,null,"","",null,null,null,null,null,null,null,null,null,"","",null,null,null,null,null,null,null,null,null,"",""]
[null,null,null,"",null,null,null,null,null,null,null,null,null,null,null,"","",null,null,null,null,null,null,null,null,null,"","",null,null,null,null,null,null,null,null,null,"","",null,null,null,null,null,null,null,null,null,"","",null,null,null,null,null,null,null,null,null,"","",null,null,null,null,null,null,null,null,null,"",""]
[null,null,null,"",null,null,null,null,null,null,null,null,null,null,null,"","",null,null,null,null,null,null,null,null,null,"","",null,null,null,null,null,null,null,null,null,"","",null,null,null,null,null,null,null,null,null,"","",null,null,null,null,null,null,null,null,null,"","",null,null,null,null,null,null,null,null,null,"",""]
[null,null,null,"",null,null,null,null,null,null,null,null,null,null,null,"","",null,null,null,null,null,null,null,null,null,"","",null,null,null,null,null,null,null,null,null,"","",null,null,null,null,null,null,null,null,null,"","",null,null,null,null,null,null,null,null,null,"","",null,null,null,null,null,null,null,null,null,"",""]
[null,null,null,"",null,null,null,null,null,null,null,null,null,null,null,"","",null,null,null,null,null,null,null,null,null,"","",null,null,null,null,null,null,null,null,null,"","",null,null,null,null,null,null,null,null,null,"","",null,null,null,null,null,null,null,null,null,"","",null,null,null,null,null,null,null,null,null,"",""]
[null,null,null,"",null,null,null,null,null,null,null,null,null,null,null,"","",null,null,null,null,null,null,null,null,null,"","",null,null,null,null,null,null,null,null,null,"","",null,null,null,null,null,null,null,null,null,"","",null,null,null,null,null,null,null,null,null,"","",null,null,null,null,null,null,null,null,null,"",""]
[null,null,null,"",null,null,null,null,null,null,null,null,null,null,null,"","",null,null,null,null,null,null,null,null,null,"","",null,null,null,null,null,null,null,null,null,"","",null,null,null,null,null,null,null,null,null,"","",null,null,null,null,null,null,null,null,null,"","",null,null,null,null,null,null,null,null,null,"",""]
[null,null,null,"",null,null,null,null,null,null,null,null,null,null,null,"","",null,null,null,null,null,null,null,null,null,"","",null,null,null,null,null,null,null,null,null,"","",null,null,null,null,null,null,null,null,null,"","",null,null,null,null,null,null,null,null,null,"","",null,null,null,null,null,null,null,null,null,"",""]
[null,null,null,"",null,null,null,null,null,null,null,null,null,null,null,"","",null,null,null,null,null,null,null,null,null,"","",null,null,null,null,null,null,null,null,null,"","",null,null,null,null,null,null,null,null,null,"","",null,null,null,null,null,null,null,null,null,"","",null,null,null,null,null,null,null,null,null,"",""]
[null,null,null,"",null,null,null,null,null,null,null,null,null,null,null,"","",null,null,null,null,null,null,null,null,null,"","",null,null,null,null,null,null,null,null,null,"","",null,null,null,null,null,null,null,null,null,"","",null,null,null,null,null,null,null,null,null,"","",null,null,null,null,null,null,null,null,null,"",""]
[null,null,null,"",null,null,null,null,null,null,null,null,null,null,null,"","",null,null,null,null,null,null,null,null,null,"","",null,null,null,null,null,null,null,null,null,"","",null,null,null,null,null,null,null,null,null,"","",null,null,null,null,null,null,null,null,null,"","",null,null,null,null,null,null,null,null,null,"",""]
[null,null,null,"",null,null,null,null,null,null,null,null,null,null,null,"","",null,null,null,null,null,null,null,null,null,"","",null,null,null,null,null,null,null,null,null,"","",null,null,null,null,null,null,null,null,null,"","",null,null,null,null,null,null,null,null,null,"","",null,null,null,null,null,null,null,null,null,"",""]
[null,null,null,"",null,null,null,null,null,null,null,null,null,null,null,"","",null,null,null,null,null,null,null,null,null,"","",null,null,null,null,null,null,null,null,null,"","",null,null,null,null,null,null,null,null,null,"","",null,null,null,null,null,null,null,null,null,"","",null,null,null,null,null,null,null,null,null,"",""]
[null,null,null,"",null,null,null,null,null,null,null,null,null,null,null,"","",null,null,null,null,null,null,null,null,null,"","",null,null,null,null,null,null,null,null,null,"","",null,null,null,null,null,null,null,null,null,"","",null,null,null,null,null,null,null,null,null,"","",null,null,null,null,null,null,null,null,null,"",""]
[null,null,null,"",null,null,null,null,null,null,null,null,null,null,null,"","",null,null,null,null,null,null,null,null,null,"","",null,null,null,null,null,null,null,null,null,"","",null,null,null,null,null,null,null,null,null,"","",null,null,null,null,null,null,null,null,null,"","",null,null,null,null,null,null,null,null,null,"",""]
[null,null,null,"",null,null,null,null,null,null,null,null,null,null,null,"","",null,null,null,null,null,null,null,null,null,"","",null,null,null,null,null,null,null,null,null,"","",null,null,null,null,null,null,null,null,null,"","",null,null,null,null,null,null,null,null,null,"","",null,null,null,null,null,null,null,null,null,"",""]
[null,null,null,"",null,null,null,null,null,null,null,null,null,null,null,"","",null,null,null,null,null,null,null,null,null,"","",null,null,null,null,null,null,null,null,null,"","",null,null,null,null,null,null,null,null,null,"","",null,null,null,null,null,null,null,null,null,"","",null,null,null,null,null,null,null,null,null,"",""]
[null,null,null,"",null,null,null,null,null,null,null,null,null,null,null,"","",null,null,null,null,null,null,null,null,null,"","",null,null,null,null,null,null,null,null,null,"","",null,null,null,null,null,null,null,null,null,"","",null,null,null,null,null,null,null,null,null,"","",null,null,null,null,null,null,null,null,null,"",""]
[null,null,null,"",null,null,null,null,null,null,null,null,null,null,null,"","",null,null,null,null,null,null,null,null,null,"","",null,null,null,null,null,null,null,null,null,"","",null,null,null,null,null,null,null,null,null,"","",null,null,null,null,null,null,null,null,null,"","",null,null,null,null,null,null,null,null,null,"",""]
[null,null,null,"",null,null,null,null,null,null,null,null,null,null,null,"","",null,null,null,null,null,null,null,null,null,"","",null,null,null,null,null,null,null,null,null,"","",null,null,null,null,null,null,null,null,null,"","",null,null,null,null,null,null,null,null,null,"","",null,null,null,null,null,null,null,null,null,"",""]
[null,null,null,"",null,null,null,null,null,null,null,null,null,null,null,"","",null,null,null,null,null,null,null,null,null,"","",null,null,null,null,null,null,null,null,null,"","",null,null,null,null,null,null,null,null,null,"","",null,null,null,null,null,null,null,null,null,"","",null,null,null,null,null,null,null,null,null,"",""]
[null,null,null,"",null,null,null,null,null,null,null,null,null,null,null,"","",null,null,null,null,null,null,null,null,null,"","",null,null,null,null,null,null,null,null,null,"","",null,null,null,null,null,null,null,null,null,"","",null,null,null,null,null,null,null,null,null,"","",null,null,null,null,null,null,null,null,null,"",""]
[null,null,null,"",null,null,null,null,null,null,null,null,null,null,null,"","",null,null,null,null,null,null,null,null,null,"","",null,null,null,null,null,null,null,null,null,"","",null,null,null,null,null,null,null,null,null,"","",null,null,null,null,null,null,null,null,null,"","",null,null,null,null,null,null,null,null,null,"",""]
[null,null,null,"",null,null,null,null,null,null,null,null,null,null,null,"","",null,null,null,null,null,null,null,null,null,"","",null,null,null,null,null,null,null,null,null,"","",null,null,null,null,null,null,null,null,null,"","",null,null,null,null,null,null,null,null,null,"","",null,null,null,null,null,null,null,null,null,"",""]
[null,null,null,"",null,null,null,null,null,null,null,null,null,null,null,"","",null,null,null,null,null,null,null,null,null,"","",null,null,null,null,null,null,null,null,null,"","",null,null,null,null,null,null,null,null,null,"","",null,null,null,null,null,null,null,null,null,"","",null,null,null,null,null,null,null,null,null,"",""]
[null,null,null,"",null,null,null,null,null,null,null,null,null,null,null,"","",null,null,null,null,null,null,null,null,null,"","",null,null,null,null,null,null,null,null,null,"","",null,null,null,null,null,null,null,null,null,"","",null,null,null,null,null,null,null,null,null,"","",null,null,null,null,null,null,null,null,null,"",""]
[null,null,null,"",null,null,null,null,null,null,null,null,null,null,null,"","",null,null,null,null,null,null,null,null,null,"","",null,null,null,null,null,null,null,null,null,"","",null,null,null,null,null,null,null,null,null,"","",null,null,null,null,null,null,null,null,null,"","",null,null,null,null,null,null,null,null,null,"",""]
[null,null,null,"",null,null,null,null,null,null,null,null,null,null,null,"","",null,null,null,null,null,null,null,null,null,"","",null,null,null,null,null,null,null,null,null,"","",null,null,null,null,null,null,null,null,null,"","",null,null,null,null,null,null,null,null,null,"","",null,null,null,null,null,null,null,null,null,"",""]
[null,null,null,"",null,null,null,null,null,null,null,null,null,null,null,"","",null,null,null,null,null,null,null,null,null,"","",null,null,null,null,null,null,null,null,null,"","",null,null,null,null,null,null,null,null,null,"","",null,null,null,null,null,null,null,null,null,"","",null,null,null,null,null,null,null,null,null,"",""]
[null,null,null,"",null,null,null,null,null,null,null,null,null,null,null,"","",null,null,null,null,null,null,null,null,null,"","",null,null,null,null,null,null,null,null,null,"","",null,null,null,null,null,null,null,null,null,"","",null,null,null,null,null,null,null,null,null,"","",null,null,null,null,null,null,null,null,null,"",""]
[null,null,null,"",null,null,null,null,null,null,null,null,null,null,null,"","",null,null,null,null,null,null,null,null,null,"","",null,null,null,null,null,null,null,null,null,"","",null,null,null,null,null,null,null,null,null,"","",null,null,null,null,null,null,null,null,null,"","",null,null,null,null,null,null,null,null,null,"",""]
[null,null,null,"",null,null,null,null,null,null,null,null,null,null,null,"","",null,null,null,null,null,null,null,null,null,"","",null,null,null,null,null,null,null,null,null,"","",null,null,null,null,null,null,null,null,null,"","",null,null,null,null,null,null,null,null,null,"","",null,null,null,null,null,null,null,null,null,"",""]
[null,null,null,"",null,null,null,null,null,null,null,null,null,null,null,"","",null,null,null,null,null,null,null,null,null,"","",null,null,null,null,null,null,null,null,null,"","",null,null,null,null,null,null,null,null,null,"","",null,null,null,null,null,null,null,null,null,"","",null,null,null,null,null,null,null,null,null,"",""]